bitfinex-derivatives/quotes_BTCF0:USTF0_20260315
["timestamp","ask_amount","ask_price","bid_price","bid_amount"]
[1773540585576,0.07860383,71350.0,71330.0,0.0014]
[1773540586672,0.07960383,71350.0,71340.0,0.042041]
[1773540587575,0.07860383,71350.0,71340.0,0.042041]
[1773540587776,0.07960383,71350.0,71331.0,0.08211198]
[1773540588079,0.07960383,71350.0,71339.0,0.042041]
[1773540589874,0.07960383,71350.0,71322.0,0.08112237]
[1773540590176,0.07960383,71350.0,71319.0,0.12565767]
[1773540590177,0.08334459,71349.0,71320.0,0.0014]
[1773540590370,0.08334459,71344.0,71329.0,0.042047]
[1773540590567,0.08334459,71341.0,71312.0,0.08112237]
[1773540590769,0.08334459,71338.0,71323.0,0.042051]
[1773540591074,0.08334459,71338.0,71322.0,0.042051]
[1773540591075,0.08334459,71336.0,71322.0,0.042051]
[1773540591275,0.08334459,71334.0,71311.0,0.08112237]
[1773540591471,0.08223032,71349.0,71311.0,0.08194772]
[1773540591677,0.0014,71348.0,71314.0,0.08194772]
[1773540591880,0.0014,71347.0,71314.0,0.08194772]
[1773540592075,0.08223032,71349.0,71327.0,0.08194772]
[1773540592381,0.0014,71348.0,71324.0,0.08194772]
[1773540592566,0.002,71344.0,71324.0,0.08194772]
[1773540592963,0.0014,71348.0,71324.0,0.08194772]
[1773540593569,0.0024,71348.0,71324.0,0.08194772]
[1773540593779,0.002,71344.0,71324.0,0.08194772]
[1773540594083,0.002,71344.0,71337.0,0.042042]
[1773540594380,0.0044,71348.0,71339.0,0.042042]
[1773540595183,0.0044,71348.0,71328.0,0.08194772]
[1773540595383,0.0014,71347.0,71339.0,0.042041]
[1773540595778,0.002,71344.0,71339.0,0.042041]
[1773540596377,0.0014,71347.0,71339.0,0.042041]
[1773540596763,0.08223032,71346.0,71314.0,0.08194772]
[1773540596967,0.08223032,71343.0,71333.0,0.042045]
[1773540597167,0.08223032,71343.0,71319.0,0.08194772]
[1773540597575,0.08223032,71343.0,71321.0,0.08194772]
[1773540597781,0.08563032,71347.0,71321.0,0.08334772]
[1773540597982,0.08563032,71347.0,71322.0,0.08194772]
[1773540598170,0.08563032,71347.0,71334.0,0.042044]
[1773540598878,0.001,71343.0,71334.0,0.042044]
[1773540599473,0.08363032,71347.0,71322.0,0.08194772]
[1773540599474,0.08563032,71347.0,71322.0,0.08194772]
[1773540599678,0.08223032,71335.0,71303.0,0.08194772]
[1773540599983,0.08845779,71350.0,71321.0,0.042052]
[1773540599984,0.043445,71334.0,71321.0,0.042052]
[1773540600169,0.08363032,71333.0,71319.0,0.042053]
[1773540600366,0.08223032,71324.0,71310.0,0.042058]
[1773540600573,0.08223032,71320.0,71300.0,0.00015215]
[1773540600772,0.0014,71319.0,71309.0,0.042059]
[1773540601074,0.08363032,71319.0,71307.0,0.04206]
[1773540601273,0.0014,71319.0,71301.0,0.08194772]
[1773540601473,0.0014,71319.0,71311.0,0.042058]
[1773540601878,0.0014,71319.0,71301.0,0.08194772]
[1773540601879,0.0014,71319.0,71309.0,0.042059]
[1773540602078,0.12428532,71317.0,71300.0,0.00015215]
[1773540602280,0.002,71333.0,71321.0,0.042052]
[1773540602576,0.002,71333.0,71314.0,0.08194772]
[1773540602771,0.0014,71332.0,71324.0,0.04205]
[1773540603174,0.0014,71331.0,71316.0,0.08194772]
[1773540603372,0.043447,71330.0,71316.0,0.042055]
[1773540603673,0.0014,71329.0,71317.0,0.042054]
[1773540603879,0.0014,71328.0,71318.0,0.042054]
[1773540604481,0.0014,71328.0,71319.0,0.042053]
[1773540605978,0.0024,71328.0,71319.0,0.042053]
[1773540606883,0.0024,71328.0,71320.0,0.042053]
[1773540609870,0.08223032,71347.0,71311.0,0.08194772]
[1773540610075,0.08223032,71347.0,71301.0,0.042064]
[1773540610076,0.042042,71339.0,71325.0,0.04205]
[1773540610379,0.043443,71338.0,71325.0,0.04205]
[1773540610584,0.0014,71337.0,71325.0,0.04205]
[1773540610977,0.0014,71337.0,71323.0,0.12399872]
[1773540611177,0.043443,71337.0,71323.0,0.12399872]
[1773540611781,0.001,71328.0,71323.0,0.12399872]
[1773540611982,0.042043,71337.0,71323.0,0.12399872]
[1773540612280,0.0014,71336.0,71323.0,0.12399872]
[1773540612886,0.001,71328.0,71323.0,0.12399872]
[1773540613093,0.0014,71327.0,71323.0,0.12399872]
[1773540613489,0.0014,71327.0,71323.0,0.042051]
[1773540614094,0.0014,71326.0,71323.0,0.042051]
[1773540615895,0.0024,71326.0,71323.0,0.042051]
[1773540616200,0.0014,71326.0,71324.0,0.04205]
[1773540616493,0.1124,71352.0,71301.0,0.042064]
[1773540616494,0.042037,71347.0,71333.0,0.042045]
[1773540616694,0.0014,71346.0,71333.0,0.042045]
[1773540617093,0.0014,71345.0,71333.0,0.042045]
[1773540617294,0.0014,71344.0,71333.0,0.042045]
[1773540617497,0.0014,71343.0,71333.0,0.042045]
[1773540617698,0.0014,71342.0,71334.0,0.042044]
[1773540618097,0.0014,71342.0,71329.0,0.08194772]
[1773540618302,0.042037,71347.0,71335.0,0.042044]
[1773540618503,0.0014,71346.0,71335.0,0.042044]
[1773540618704,0.0014,71346.0,71333.0,0.042045]
[1773540619003,0.042037,71347.0,71333.0,0.042045]
[1773540619204,0.001,71342.0,71333.0,0.042045]
[1773540619698,0.0024,71346.0,71333.0,0.042045]
[1773540619904,0.044438,71346.0,71333.0,0.042045]
[1773540620202,0.001,71342.0,71333.0,0.042045]
[1773540621595,0.043438,71346.0,71333.0,0.042045]
[1773540621796,0.044438,71346.0,71333.0,0.042045]
[1773540622299,0.001,71342.0,71333.0,0.042045]
[1773540622599,0.001,71342.0,71329.0,0.08194772]
[1773540622804,0.001,71342.0,71336.0,0.042043]
[1773540623005,0.0014,71346.0,71334.0,0.042044]
[1773540623401,0.0024,71346.0,71334.0,0.042044]
[1773540623792,0.08422687,71345.0,71317.0,0.0014]
[1773540623995,0.08422687,71340.0,71317.0,0.0014]
[1773540624201,0.08422687,71338.0,71327.0,0.042048]
[1773540624396,0.001,71346.0,71315.0,0.08207783]
[1773540624397,0.08562687,71337.0,71315.0,0.08207783]
[1773540624596,0.001,71346.0,71305.0,0.0014]
[1773540624597,0.08422687,71329.0,71305.0,0.0014]
[1773540624802,0.0014,71328.0,71320.0,0.042053]
[1773540625002,0.0014,71327.0,71320.0,0.042053]
[1773540625207,0.0014,71326.0,71320.0,0.042053]
[1773540625407,0.0014,71325.0,71311.0,0.08207783]
[1773540625602,0.0014,71324.0,71311.0,0.08207783]
[1773540625798,0.0014,71324.0,71319.0,0.042053]
[1773540627306,0.0014,71323.0,71320.0,0.042052]
[1773540627507,0.0014,71322.0,71320.0,0.042052]
[1773540627708,0.0014,71321.0,71320.0,0.042052]
[1773540629508,0.08422687,71347.0,71320.0,0.042052]
[1773540629709,0.08422687,71345.0,71311.0,0.08207783]
[1773540629910,0.08422687,71345.0,71324.0,0.00840752]
[1773540630811,0.1124,71341.0,71311.0,0.08207783]
[1773540631112,0.1124,71341.0,71315.0,0.08207783]
[1773540631311,0.1124,71341.0,71324.0,0.01400055]
[1773540631703,0.154441,71341.0,71340.0,0.01400055]
[1773540631903,0.04205,71326.0,71315.0,0.10997886]
[1773540632103,0.0014,71325.0,71315.0,0.10997886]
[1773540632507,0.0014,71325.0,71319.0,0.042038]
[1773540636601,0.0014,71325.0,71311.0,0.11451268]
[1773540636803,0.042054,71319.0,71307.0,0.11450773]
[1773540637007,0.08422687,71329.0,71307.0,0.11450773]
[1773540637008,0.042055,71316.0,71307.0,0.11450773]
[1773540637312,0.0014,71315.0,71307.0,0.11450773]
[1773540637700,0.0014,71315.0,71301.0,0.11450773]
[1773540637902,0.1124,71330.0,71301.0,0.11450773]
[1773540638107,0.0014,71329.0,71312.0,0.1112763]
[1773540638304,0.043448,71329.0,71315.0,0.1112763]
[1773540638516,0.042049,71328.0,71315.0,0.1112763]
[1773540639120,0.042049,71327.0,71315.0,0.1112763]
[1773540640513,0.0024,71329.0,71300.0,0.08867576]
[1773540640717,0.042052,71322.0,71308.0,0.04206]
[1773540640919,0.0014,71321.0,71309.0,0.10909371]
[1773540641415,0.0014,71321.0,71300.0,0.10924586]
[1773540641416,0.08852361,71320.0,71300.0,0.10924586]
[1773540641611,0.042057,71314.0,71301.0,0.10909371]
[1773540641812,0.043457,71313.0,71301.0,0.10909371]
[1773540642017,0.0014,71312.0,71301.0,0.10909371]
[1773540642417,0.043458,71312.0,71301.0,0.10909371]
[1773540642803,0.1124,71334.0,71301.0,0.10909371]
[1773540643010,0.042052,71323.0,71309.0,0.042059]
[1773540643214,0.043452,71322.0,71310.0,0.11062294]
[1773540643415,0.042052,71322.0,71310.0,0.11062294]
[1773540643617,0.0014,71321.0,71310.0,0.11062294]
[1773540644018,0.043453,71321.0,71310.0,0.11062294]
[1773540644924,0.044453,71321.0,71310.0,0.11062294]
[1773540645816,0.042053,71320.0,71310.0,0.11062294]
[1773540647224,0.0014,71321.0,71305.0,0.11150978]
[1773540647424,0.0014,71321.0,71306.0,0.11150978]
[1773540647722,0.042053,71320.0,71308.0,0.11150978]
[1773540648123,0.042053,71320.0,71309.0,0.11150693]
[1773540649728,0.042054,71319.0,71309.0,0.11150693]
[1773540652619,0.042054,71318.0,71309.0,0.11150693]
[1773540652819,0.042054,71318.0,71305.0,0.042061]
[1773540653228,0.042054,71318.0,71306.0,0.12272809]
[1773540653428,0.042055,71317.0,71306.0,0.12272809]
[1773540653825,0.10516812,71321.0,71300.0,0.00015215]
[1773540654024,0.042059,71310.0,71300.0,0.00015215]
[1773540654328,0.0014,71309.0,71300.0,0.00015215]
[1773540655116,0.0014,71308.0,71301.0,0.042064]
[1773540655320,0.0014,71307.0,71301.0,0.13662252]
[1773540655524,0.0014,71306.0,71302.0,0.042063]
[1773540655726,0.0014,71305.0,71303.0,0.13606252]
[1773540655928,0.0014,71306.0,71303.0,0.13606252]
[1773540656816,0.042056,71315.0,71303.0,0.13606252]
[1773540657022,0.0014,71314.0,71303.0,0.13606252]
[1773540660930,0.41984351,71330.0,71300.0,0.00015215]
[1773540660931,0.0014,71319.0,71311.0,0.13576698]
[1773540661827,0.042052,71322.0,71311.0,0.13576698]
[1773540662030,0.0014,71321.0,71311.0,0.13576698]
[1773540662331,0.0014,71321.0,71316.0,0.13613484]
[1773540664229,0.043453,71321.0,71316.0,0.13613484]
[1773540664631,0.043453,71321.0,71317.0,0.00841018]
[1773540665628,0.043453,71321.0,71316.0,0.13613484]
[1773540667734,0.54904172,71337.0,71316.0,0.13613484]
[1773540667938,0.042052,71322.0,71318.0,0.13434024]
[1773540668129,0.0014,71321.0,71318.0,0.13434024]
[1773540670935,0.41984351,71346.0,71318.0,0.13434024]
[1773540671135,0.0014,71348.0,71331.0,0.13395846]
[1773540671337,0.0014,71348.0,71332.0,0.13395846]
[1773540671541,0.0014,71348.0,71337.0,0.13395846]
[1773540680043,0.0014,71348.0,71337.0,0.17600046]
[1773540680243,0.0014,71347.0,71338.0,0.13140027]
[1773540680442,0.042036,71350.0,71338.0,0.13140027]
[1773540680641,0.0014,71349.0,71338.0,0.13140027]
[1773540681139,0.0014,71349.0,71346.0,1.8e-07]
[1773540681539,0.0014,71349.0,71342.0,0.13139239]
[1773540685951,0.0014,71348.0,71342.0,0.13139239]
[1773540686250,0.02621389,71359.0,71342.0,0.13139239]
[1773540686445,0.0014,71358.0,71343.0,0.17077868]
[1773540686645,0.02621389,71359.0,71343.0,0.17077868]
[1773540686945,0.0885228,71370.0,71344.0,0.17077868]
[1773540687145,0.042029,71361.0,71349.0,0.17077868]
[1773540687342,0.0014,71360.0,71349.0,0.17077868]
[1773540687746,0.04343,71360.0,71349.0,0.17077868]
[1773540687950,0.042035,71350.0,71330.0,0.0885228]
[1773540688142,0.0014,71351.0,71331.0,0.17217868]
[1773540688450,0.0014,71350.0,71339.0,0.21281968]
[1773540689049,0.0014,71350.0,71339.0,0.17077868]
[1773540689751,0.0014,71349.0,71339.0,0.17077868]
[1773540689951,0.0014,71348.0,71339.0,0.21282068]
[1773540690151,0.0014,71349.0,71342.0,0.17077868]
[1773540690850,0.0014,71349.0,71336.0,0.17077868]
[1773540691248,0.0014,71349.0,71339.0,0.042041]
[1773540691551,0.042024,71370.0,71339.0,0.17077868]
[1773540691757,0.17486204,71368.0,71339.0,0.17077868]
[1773540692351,0.17486204,71368.0,71342.0,0.014]
[1773540692662,0.17486204,71368.0,71339.0,0.17077868]
[1773540692864,0.17586204,71368.0,71339.0,0.17077868]
[1773540693048,0.17686204,71368.0,71339.0,0.17077868]
[1773540694345,0.17486204,71364.0,71339.0,0.17077868]
[1773540694652,0.17486204,71367.0,71339.0,0.17077868]
[1773540694852,0.17486204,71367.0,71348.0,0.02521521]
[1773540695051,0.17486204,71367.0,71339.0,0.17077868]
[1773540695354,0.002,71368.0,71339.0,0.17077868]
[1773540695652,0.17486204,71363.0,71339.0,0.17077868]
[1773540695850,0.17626204,71362.0,71339.0,0.17077868]
[1773540696046,0.17626204,71362.0,71348.0,2.1e-07]
[1773540696240,0.17626204,71362.0,71339.0,0.17077868]
[1773540696949,0.042036,71350.0,71339.0,0.17077868]
[1773540697253,0.0014,71349.0,71339.0,0.17077868]
[1773540700155,0.043436,71349.0,71339.0,0.17077868]
[1773540700354,0.0014,71349.0,71339.0,0.17077868]
[1773540708057,0.043436,71349.0,71339.0,0.17077868]
[1773540709259,0.042037,71348.0,71339.0,0.17077868]
[1773540710754,0.0014,71349.0,71339.0,0.17077868]
[1773540710964,0.0014,71348.0,71339.0,0.17077868]
[1773540711157,0.0014,71347.0,71339.0,0.17077868]
[1773540711461,0.0014,71346.0,71339.0,0.17077868]
[1773540711760,0.0014,71345.0,71339.0,0.17077868]
[1773540711961,0.0014,71344.0,71339.0,0.17077868]
[1773540717263,0.0014,71343.0,71339.0,0.21281968]
[1773540717761,0.0014,71343.0,71339.0,0.17077868]
[1773540718360,0.0014,71344.0,71339.0,0.17077868]
[1773540719665,0.0014,71345.0,71341.0,0.21052761]
[1773540720565,0.042039,71344.0,71336.0,0.21052761]
[1773540720758,0.0014,71345.0,71336.0,0.21052761]
[1773540721156,0.042042,71340.0,71325.0,0.21052761]
[1773540721862,0.0014,71343.0,71339.0,0.21052761]
[1773540722371,0.0014,71342.0,71339.0,0.21052761]
[1773540722570,0.0014,71343.0,71339.0,0.21052761]
[1773540722862,0.0014,71344.0,71339.0,0.21052761]
[1773540724160,0.0014,71344.0,71340.0,0.08844059]
[1773540724359,0.0014,71344.0,71341.0,0.21052761]
[1773540731672,0.042036,71349.0,71341.0,0.21052761]
[1773540731874,0.0014,71348.0,71341.0,0.21052761]
[1773540735867,0.0014,71358.0,71341.0,0.21052761]
[1773540736071,0.2047761,71381.0,71352.0,0.21052761]
[1773540736072,0.0014,71357.0,71352.0,0.21052761]
[1773540736371,0.042027,71365.0,71352.0,0.25256161]
[1773540736671,0.01121,71374.0,71352.0,0.25256161]
[1773540736672,0.043427,71364.0,71352.0,0.25256161]
[1773540736877,0.043427,71364.0,71352.0,0.21052761]
[1773540737078,0.0014,71364.0,71352.0,0.21052761]
[1773540737377,0.042028,71363.0,71352.0,0.21052761]
[1773540738080,0.001,71358.0,71352.0,0.21052761]
[1773540738277,0.0014,71357.0,71352.0,0.21052761]
[1773540738870,0.042028,71363.0,71352.0,0.21052761]
[1773540739181,0.0014,71362.0,71352.0,0.21052761]
[1773540739474,0.0014,71361.0,71357.0,0.21052761]
[1773540739680,0.01121,71388.0,71357.0,0.21052761]
[1773540739681,0.0014,71362.0,71357.0,0.21052761]
[1773540740174,0.0014,71361.0,71357.0,0.21052761]
[1773540740366,0.0014,71360.0,71357.0,0.21052761]
[1773540740566,0.042025,71368.0,71357.0,0.21052761]
[1773540740879,0.0014,71367.0,71357.0,0.21052761]
[1773540741080,0.0014,71366.0,71357.0,0.21052761]
[1773540742081,0.12306898,71376.0,71357.0,0.21052761]
[1773540742270,0.2047761,71382.0,71357.0,0.21052761]
[1773540742271,0.0014,71375.0,71357.0,0.21052761]
[1773540742470,0.0014,71374.0,71357.0,0.21052761]
[1773540742775,0.0014,71373.0,71357.0,0.21052761]
[1773540742973,0.0014,71372.0,71357.0,0.21052761]
[1773540743173,0.042024,71370.0,71357.0,0.25255861]
[1773540743374,0.0014,71372.0,71357.0,0.25255861]
[1773540743375,0.042025,71368.0,71357.0,0.21052761]
[1773540743577,0.042025,71368.0,71360.0,0.08844059]
[1773540743770,0.0014,71372.0,71360.0,0.08844059]
[1773540743771,0.042023,71370.0,71360.0,0.08844059]
[1773540743973,0.0014,71372.0,71361.0,0.21337802]
[1773540745268,0.0014,71371.0,71361.0,0.21337802]
[1773540745473,0.0014,71370.0,71361.0,0.21337802]
[1773540745783,0.0014,71369.0,71361.0,0.21337802]
[1773540746082,0.043425,71368.0,71356.0,0.21337802]
[1773540746282,0.0014,71367.0,71357.0,0.042031]
[1773540746474,0.0014,71366.0,71357.0,0.25540902]
[1773540746875,0.0014,71366.0,71357.0,0.21337802]
[1773540748082,0.21254988,71383.0,71357.0,0.21337802]
[1773540748274,0.21254988,71381.0,71357.0,0.21337802]
[1773540748978,0.21254988,71381.0,71362.0,0.014]
[1773540749178,0.21254988,71381.0,71354.0,0.042032]
[1773540749179,0.21254988,71381.0,71380.0,0.014]
[1773540749485,0.21494988,71381.0,71365.0,0.03361328]
[1773540749686,0.21494988,71381.0,71380.0,0.014]
[1773540750580,0.21594988,71381.0,71380.0,0.014]
[1773540751083,0.0024,71381.0,71380.0,0.014]
[1773540751281,0.0034,71381.0,71380.0,0.014]
[1773540751672,0.002,71381.0,71380.0,0.014]
[1773540751878,0.00181173,71381.0,71380.0,0.014]
[1773540752088,0.00321173,71381.0,71380.0,0.014]
[1773540752378,0.002,71381.0,71380.0,0.014]
[1773540752583,0.0034,71381.0,71380.0,0.014]
[1773540753184,0.0024,71381.0,71380.0,0.014]
[1773540753384,0.0034,71381.0,71380.0,0.014]
[1773540753687,0.0014,71381.0,71380.0,0.014]
[1773540753882,0.0034,71381.0,71380.0,0.014]
[1773540754188,0.045417,71381.0,71380.0,0.014]
[1773540754780,0.044417,71381.0,71380.0,0.014]
[1773540755387,0.25696688,71381.0,71380.0,0.014]
[1773540755580,0.25696688,71381.0,71360.0,0.08844059]
[1773540755581,0.042023,71370.0,71360.0,0.08844059]
[1773540755781,0.0014,71369.0,71360.0,0.08844059]
[1773540755975,0.0014,71368.0,71361.0,0.21337802]
[1773540756176,0.0014,71367.0,71362.0,0.21337802]
[1773540756389,0.0014,71366.0,71362.0,0.21337802]
[1773540756686,0.0014,71365.0,71362.0,0.21337802]
[1773540756889,0.0014,71364.0,71363.0,1.81337802]
[1773540757083,0.0014,71364.0,71363.0,0.21337802]
[1773540759784,0.0014,71364.0,71361.0,0.21337802]
[1773540759987,0.0014,71363.0,71361.0,0.21337802]
[1773540760184,0.042023,71371.0,71362.0,3.40394477]
[1773540760386,0.042023,71371.0,71362.0,0.21337802]
[1773540760387,0.0014,71370.0,71362.0,0.21337802]
[1773540761091,0.043424,71370.0,71363.0,3.19056675]
[1773540761885,0.042024,71370.0,71363.0,3.19056675]
[1773540762091,0.21254988,71381.0,71363.0,3.19056675]
[1773540762386,0.042023,71371.0,71363.0,3.19056675]
[1773540764196,0.042023,71371.0,71363.0,3.40394477]
[1773540764687,0.21754988,71379.0,71363.0,3.19056675]
[1773540764888,0.21254988,71377.0,71363.0,3.19056675]
[1773540765088,0.41920632,71372.0,71365.0,0.00840368]
[1773540765287,0.41920632,71371.0,71365.0,0.00840368]
[1773540765490,0.41920632,71371.0,71355.0,0.21337802]
[1773540766084,0.41920632,71373.0,71355.0,0.21337802]
[1773540766284,0.0014,71372.0,71356.0,3.40394477]
[1773540766685,0.42060632,71372.0,71365.0,0.00840368]
[1773540766885,0.001,71371.0,71365.0,0.00840368]
[1773540767090,0.001,71371.0,71356.0,3.40394477]
[1773540767592,0.0024,71372.0,71356.0,3.40394477]
[1773540767790,0.42160632,71372.0,71365.0,0.00840368]
[1773540768100,0.0034,71372.0,71365.0,0.00840368]
[1773540768398,0.0034,71372.0,71356.0,3.40394477]
[1773540768399,0.0034,71372.0,71357.0,0.21337802]
[1773540768695,0.0034,71372.0,71356.0,3.23259775]
[1773540768696,0.0024,71372.0,71356.0,3.19056675]
[1773540769082,0.0014,71372.0,71356.0,3.19056675]
[1773540769681,0.0024,71372.0,71356.0,1.6]
[1773540769885,0.0024,71372.0,71357.0,0.21337802]
[1773540770787,0.001,71372.0,71361.0,0.27372776]
[1773540770988,0.0014,71371.0,71361.0,0.27372776]
[1773540771286,0.0014,71371.0,71360.0,0.08844059]
[1773540771287,0.001,71372.0,71367.0,0.27372776]
[1773540771486,0.0014,71371.0,71367.0,0.27372776]
[1773540772793,0.0014,71371.0,71366.0,0.00840368]
[1773540772994,0.03259988,71370.0,71366.0,0.00840368]
[1773540773186,0.0014,71371.0,71366.0,0.00840368]
[1773540773386,0.0014,71371.0,71366.0,0.28111588]
[1773540773798,0.042022,71372.0,71366.0,0.28111588]
[1773540774187,0.005,71375.0,71366.0,8.8e-07]
[1773540774394,0.042023,71372.0,71361.0,0.2727122]
[1773540774587,0.042023,71371.0,71362.0,0.2727122]
[1773540777696,0.042024,71369.0,71361.0,3.19056675]
[1773540778099,0.042023,71372.0,71361.0,3.19056675]
[1773540779396,0.043023,71372.0,71361.0,3.19056675]
[1773540781906,0.0014,71371.0,71361.0,3.19056675]
[1773540785404,0.30848,71382.0,71362.0,0.2727122]
[1773540785617,0.01121,71394.0,71384.0,0.2727122]
[1773540785802,0.0014,71393.0,71384.0,0.04895965]
[1773540786198,0.04201,71392.0,71384.0,0.04895965]
[1773540786394,0.04134518,71392.0,71384.0,0.04895965]
[1773540786707,0.0014,71393.0,71376.0,0.042019]
[1773540787198,0.0014,71393.0,71376.0,0.3147312]
[1773540787507,0.0014,71393.0,71381.0,0.2727122]
[1773540787508,0.042011,71392.0,71381.0,0.2727122]
[1773540787806,0.042011,71392.0,71382.0,1.59056675]
[1773540788507,0.042011,71392.0,71381.0,0.2727122]
[1773540788704,0.042011,71392.0,71382.0,3.19056675]
[1773540790496,0.0014,71393.0,71382.0,1.59056675]
[1773540791604,0.26959424,71392.0,71373.0,0.2727122]
[1773540791813,0.04202,71376.0,71361.0,0.042028]
[1773540792000,0.08840522,71390.0,71359.0,0.2727122]
[1773540792001,0.042024,71370.0,71359.0,0.2727122]
[1773540792200,0.0014,71369.0,71359.0,0.2727122]
[1773540792499,0.0014,71368.0,71359.0,0.2727122]
[1773540792701,0.0014,71367.0,71355.0,0.3147442]
[1773540793005,0.0014,71367.0,71350.0,0.08840522]
[1773540793006,0.0014,71366.0,71353.0,0.042033]
[1773540793201,0.0014,71365.0,71354.0,0.042032]
[1773540793400,0.0014,71364.0,71354.0,0.042032]
[1773540793599,0.0014,71363.0,71354.0,0.042032]
[1773540794107,0.0014,71363.0,71355.0,0.042032]
[1773540797296,0.0014,71363.0,71353.0,0.042033]
[1773540797502,0.0014,71363.0,71354.0,0.042032]
[1773540797802,0.0014,71363.0,71355.0,0.042032]
[1773540798604,0.0014,71363.0,71353.0,0.042033]
[1773540799605,0.0014,71363.0,71354.0,0.042032]
[1773540801907,0.0014,71362.0,71354.0,0.35586832]
[1773540802107,0.0014,71361.0,71354.0,0.35586832]
[1773540802415,0.0014,71360.0,71354.0,0.35586832]
[1773540803611,0.042031,71358.0,71347.0,0.02069411]
[1773540803910,0.04343,71360.0,71347.0,0.02069411]
[1773540805024,0.0014,71360.0,71347.0,0.02069411]
[1773540805812,0.042032,71355.0,71347.0,0.02069411]
[1773540808910,0.042033,71354.0,71347.0,0.02069411]
[1773540809115,0.0014,71353.0,71347.0,0.02069411]
[1773540809713,0.45426272,71369.0,71347.0,0.02069411]
[1773540809714,1.02002502,71400.0,71347.0,0.02069411]
[1773540809906,0.32825449,71371.0,71347.0,0.02069411]
[1773540810302,0.32825449,71371.0,71343.0,0.042039]
[1773540810514,0.32685449,71369.0,71343.0,0.042039]
[1773540811016,0.042033,71355.0,71341.0,0.04204]
[1773540811212,0.0014,71354.0,71341.0,0.04204]
[1773540811412,0.043433,71354.0,71341.0,0.04204]
[1773540811615,0.0014,71354.0,71343.0,0.31383632]
[1773540811918,0.0014,71353.0,71343.0,0.31383632]
[1773540812123,0.0014,71353.0,71343.0,0.35587532]
[1773540812819,0.0014,71353.0,71344.0,0.042038]
[1773540813018,0.0014,71353.0,71345.0,0.31383632]
[1773540815220,0.0014,71353.0,71345.0,0.35587432]
[1773540816321,0.0014,71353.0,71345.0,0.042038]
[1773540816822,0.32685449,71371.0,71345.0,0.042038]
[1773540817316,0.32685449,71371.0,71352.0,0.00840567]
[1773540817516,0.32685449,71371.0,71350.0,0.014]
[1773540817716,0.36887749,71371.0,71370.0,0.014]
[1773540817916,0.32825449,71371.0,71370.0,0.014]
[1773540818106,0.32925449,71371.0,71370.0,0.014]
[1773540818307,0.33025449,71371.0,71370.0,0.014]
[1773540818716,0.32825449,71371.0,71370.0,0.014]
[1773540819021,0.37227749,71371.0,71370.0,0.014]
[1773540822326,0.50019311,71371.0,71370.0,0.014]
[1773540826725,0.45817011,71371.0,71370.0,0.014]
[1773540828028,0.50019311,71371.0,71370.0,0.014]
[1773540828229,0.17233862,71371.0,71370.0,0.014]
[1773540828430,0.17333862,71371.0,71370.0,0.014]
[1773540830133,0.55865502,71371.0,71370.0,0.014]
[1773540832327,0.51563202,71371.0,71370.0,0.014]
[1773540832527,0.51663202,71371.0,71370.0,0.014]
[1773540833527,0.51563202,71371.0,71370.0,0.014]
[1773540833931,0.55865502,71371.0,71370.0,0.014]
[1773540834131,1.08200338,71371.0,71370.0,0.014]
[1773540835128,0.55865502,71371.0,71370.0,0.014]
[1773540835530,0.38400743,71364.0,71339.0,0.38701681]
[1773540835739,0.80457696,71359.0,71336.0,0.40768482]
[1773540836031,0.42196953,71358.0,71338.0,0.38701681]
[1773540836222,0.38400743,71355.0,71337.0,0.93046207]
[1773540836423,0.042038,71346.0,71337.0,0.93046207]
[1773540836635,0.0014,71345.0,71337.0,0.93046207]
[1773540836840,0.043439,71345.0,71337.0,0.93046207]
[1773540837440,0.043439,71345.0,71336.0,0.02066801]
[1773540837441,0.0014,71345.0,71336.0,0.02066801]
[1773540837738,0.0014,71345.0,71336.0,1e-08]
[1773540838135,0.12895586,71345.0,71336.0,1e-08]
[1773540838530,0.042039,71344.0,71329.0,0.04134673]
[1773540838725,0.042039,71344.0,71330.0,0.042047]
[1773540839840,0.042039,71344.0,71330.0,0.42906381]
[1773540840243,0.005,71358.0,71325.0,0.38841681]
[1773540840540,0.0014,71357.0,71345.0,0.38701681]
[1773540840841,0.0014,71356.0,71334.0,0.38701681]
[1773540841031,0.0014,71356.0,71347.0,0.38701681]
[1773540841231,0.0014,71355.0,71347.0,0.38701681]
[1773540841633,0.16769165,71360.0,71347.0,0.38701681]
[1773540841844,0.001,71357.0,71347.0,0.38701681]
[1773540842226,0.0014,71356.0,71347.0,0.38701681]
[1773540842640,0.001,71357.0,71347.0,0.38701681]
[1773540842834,0.0014,71356.0,71347.0,0.38701681]
[1773540843539,0.001,71355.0,71347.0,0.38701681]
[1773540843742,0.0014,71354.0,71347.0,0.38701681]
[1773540846932,0.0014,71354.0,71325.0,0.38701681]
[1773540847138,0.46260453,71351.0,71339.0,0.042041]
[1773540847437,0.42056953,71351.0,71340.0,0.042041]
[1773540847641,0.42056953,71351.0,71341.0,0.04204]
[1773540850039,0.42056953,71351.0,71342.0,0.042039]
[1773540853947,0.1123,71378.0,71342.0,0.042039]
[1773540854240,0.30856,71369.0,71350.0,0.42905181]
[1773540854431,0.30856,71369.0,71356.0,0.00840666]
[1773540854432,0.042028,71363.0,71356.0,0.00840666]
[1773540854636,0.042028,71363.0,71350.0,0.42905181]
[1773540855136,0.001,71361.0,71350.0,0.42905181]
[1773540855336,0.002,71361.0,71350.0,0.42905181]
[1773540855538,0.002,71361.0,71356.0,0.00840666]
[1773540855737,0.001,71361.0,71350.0,0.42905181]
[1773540857240,0.042028,71363.0,71350.0,0.42905181]
[1773540857541,0.0014,71362.0,71356.0,0.00840666]
[1773540858342,0.001,71361.0,71356.0,0.00840666]
[1773540859644,0.0014,71362.0,71356.0,0.00840666]
[1773540859847,0.0024,71362.0,71356.0,0.00840666]
[1773540860348,0.0014,71361.0,71356.0,0.38701681]
[1773540860641,0.0024,71361.0,71354.0,0.042033]
[1773540861143,0.001,71361.0,71354.0,0.042033]
[1773540861641,0.001,71362.0,71354.0,0.41336433]
[1773540861838,0.0014,71361.0,71357.0,0.00840666]
[1773540862039,0.042025,71368.0,71358.0,0.41336433]